[Event "*** Titled Tuesday Blitz"]
[Site "Chess.com"]
[Date "2020.11.24"]
[Round "1"]
[White "SophieNikoladze"]
[Black "IrishMonkey"]
[Result "0-1"]
[WhiteElo "2266"]
[BlackElo "2561"]
[TimeControl "180+1"]
[EndTime "10:20:12 PST"]
[Termination "IrishMonkey won by resignation"]

1. d4 {[%clk 0:02:19.8]} 1... Nf6 {[%clk 0:02:56.4]} 2. Nf3 {[%clk 0:02:19]}
2... c5 {[%clk 0:02:54.4]} 3. e3 {[%clk 0:02:18.8]} 3... b6 {[%clk 0:02:50.7]}
4. Bd3 {[%clk 0:02:18.2]} 4... Bb7 {[%clk 0:02:49]} 5. b3 {[%clk 0:02:18.4]}
5... Nc6 {[%clk 0:02:43.3]} 6. O-O {[%clk 0:02:18]} 6... e6 {[%clk 0:02:41.6]}
7. c4 {[%clk 0:02:17.7]} 7... cxd4 {[%clk 0:02:36.7]} 8. exd4 {[%clk 0:02:17.1]}
8... Be7 {[%clk 0:02:35.9]} 9. Nc3 {[%clk 0:02:16.1]} 9... Bb4 {[%clk
0:02:32.7]} 10. Bb2 {[%clk 0:02:15.4]} 10... Bxc3 {[%clk 0:02:22.2]} 11. Bxc3
{[%clk 0:02:14.9]} 11... d5 {[%clk 0:02:22.8]} 12. Ne5 {[%clk 0:02:13.1]} 12...
h6 {[%clk 0:02:18.9]} 13. f4 {[%clk 0:02:12.1]} 13... Qd6 {[%clk 0:02:15.7]} 14.
Re1 {[%clk 0:02:06.8]} 14... Ne7 {[%clk 0:02:12.3]} 15. Qd2 {[%clk 0:02:03.7]}
15... O-O {[%clk 0:02:08.9]} 16. Bb4 {[%clk 0:02:03.6]} 16... Qd8 {[%clk
0:02:04.7]} 17. f5 {[%clk 0:02:03.5]} 17... exf5 {[%clk 0:02:00.8]} 18. Bxe7
{[%clk 0:02:01.6]} 18... Qxe7 {[%clk 0:02:01.5]} 19. Ng6 {[%clk 0:02:01.4]}
19... Qc7 {[%clk 0:01:56.9]} 20. Nxf8 {[%clk 0:02:00.9]} 20... Rxf8 {[%clk
0:01:56.5]} 21. Bxf5 {[%clk 0:02:01]} 21... dxc4 {[%clk 0:01:53.3]} 22. Rac1
{[%clk 0:02:00]} 22... b5 {[%clk 0:01:48.8]} 23. bxc4 {[%clk 0:01:59.8]} 23...
bxc4 {[%clk 0:01:47]} 24. Bd3 {[%clk 0:01:59.9]} 24... Ng4 {[%clk 0:01:43.8]}
25. g3 {[%clk 0:01:54.2]} 25... Bd5 {[%clk 0:01:40]} 26. Be4 {[%clk 0:01:53.9]}
26... Be6 {[%clk 0:01:37]} 27. d5 {[%clk 0:01:53.4]} 27... Qc5+ {[%clk 0:01:34]}
28. Kg2 {[%clk 0:01:51.2]} 28... Rd8 {[%clk 0:01:33.5]} 29. Qf4 {[%clk
0:01:45.3]} 29... g5 {[%clk 0:01:30.1]} 30. Qf3 {[%clk 0:01:41.8]} 30... Rxd5
{[%clk 0:01:24.2]} 31. h3 {[%clk 0:01:26.2]} 31... Rd2+ {[%clk 0:01:20.2]} 32.
Re2 {[%clk 0:01:25.1]} 32... Ne5 {[%clk 0:01:19.1]} 33. Qh5 {[%clk 0:01:17.6]}
33... Qe3 {[%clk 0:01:16]} 34. Re1 {[%clk 0:01:15.5]} 34... Qxe4+ {[%clk
0:01:11.1]} 35. Kg1 {[%clk 0:01:15]} 35... Nf3+ {[%clk 0:01:06.8]} 0-1

[Event "*** Titled Tuesday Blitz"]
[Site "Chess.com"]
[Date "2020.11.24"]
[Round "1"]
[White "ajdemipopushi"]
[Black "Sviridov_Valery"]
[Result "0-1"]
[WhiteElo "2423"]
[BlackElo "2824"]
[TimeControl "180+1"]
[EndTime "10:20:14 PST"]
[Termination "Sviridov_Valery won by resignation"]

1. Nf3 {[%clk 0:03:00.1]} 1... g6 {[%clk 0:02:59.4]} 2. g3 {[%clk 0:03:00.6]}
2... Bg7 {[%clk 0:03:00.3]} 3. d4 {[%clk 0:03:00.7]} 3... Nf6 {[%clk 0:03:01.1]}
4. Bg2 {[%clk 0:03:00.8]} 4... O-O {[%clk 0:03:02]} 5. c4 {[%clk 0:03:01]} 5...
d6 {[%clk 0:03:02.9]} 6. Nc3 {[%clk 0:03:01.3]} 6... Nbd7 {[%clk 0:03:03.8]} 7.
O-O {[%clk 0:03:01.4]} 7... e5 {[%clk 0:03:04.1]} 8. e4 {[%clk 0:03:01.4]} 8...
c6 {[%clk 0:03:03]} 9. h3 {[%clk 0:02:58.6]} 9... Re8 {[%clk 0:03:03.2]} 10. Re1
{[%clk 0:02:57.9]} 10... Qb6 {[%clk 0:03:03.2]} 11. dxe5 {[%clk 0:02:34.5]}
11... dxe5 {[%clk 0:03:01.8]} 12. Qc2 {[%clk 0:02:34.3]} 12... Qc7 {[%clk
0:02:49.8]} 13. Be3 {[%clk 0:02:27.2]} 13... a5 {[%clk 0:02:49.6]} 14. b3 {[%clk
0:02:26.5]} 14... Bf8 {[%clk 0:02:47.7]} 15. Rad1 {[%clk 0:02:21.8]} 15... Bc5
{[%clk 0:02:47.7]} 16. Qc1 {[%clk 0:02:07.6]} 16... b6 {[%clk 0:02:29.9]} 17.
Rd3 {[%clk 0:01:29.8]} 17... Bxe3 {[%clk 0:02:25.6]} 18. Qxe3 {[%clk 0:01:29.3]}
18... Nc5 {[%clk 0:02:23]} 19. Rd2 {[%clk 0:01:29.3]} 19... Qe7 {[%clk
0:02:23.6]} 20. Red1 {[%clk 0:01:26.8]} 20... Ra7 {[%clk 0:02:22]} 21. g4 {[%clk
0:01:17]} 21... Rd7 {[%clk 0:02:21.6]} 22. Rxd7 {[%clk 0:01:09.2]} 22... Nfxd7
{[%clk 0:02:22.5]} 23. Nh2 {[%clk 0:00:58.5]} 23... Nf8 {[%clk 0:02:22.2]} 24.
a3 {[%clk 0:00:36.2]} 24... Nxb3 {[%clk 0:02:06.5]} 25. Qxb6 {[%clk 0:00:34.2]}
25... Nd4 {[%clk 0:02:07.2]} 26. Qxa5 {[%clk 0:00:29.7]} 26... Nfe6 {[%clk
0:02:07.8]} 27. Nf3 {[%clk 0:00:26.2]} 27... Nxf3+ {[%clk 0:02:04.7]} 28. Bxf3
{[%clk 0:00:26.2]} 28... Nf4 {[%clk 0:02:05.6]} 29. Bg2 {[%clk 0:00:23.1]} 29...
h5 {[%clk 0:02:04.8]} 30. gxh5 {[%clk 0:00:11.9]} 30... Qg5 {[%clk 0:02:04.4]}
0-1

[Event "*** Titled Tuesday Blitz"]
[Site "Chess.com"]
[Date "2020.11.24"]
[Round "1"]
[White "IriBu"]
[Black "Nachsueb"]
[Result "1-0"]
[WhiteElo "2518"]
[BlackElo "2157"]
[TimeControl "180+1"]
[EndTime "10:20:14 PST"]
[Termination "IriBu won by resignation"]

1. e4 {[%clk 0:03:00.9]} 1... e6 {[%clk 0:02:59.8]} 2. d4 {[%clk 0:03:00.4]}
2... d5 {[%clk 0:03:00.3]} 3. Nc3 {[%clk 0:03:00.8]} 3... Bb4 {[%clk 0:02:59.4]}
4. Ne2 {[%clk 0:02:59.4]} 4... c5 {[%clk 0:02:53.6]} 5. a3 {[%clk 0:02:52.1]}
5... cxd4 {[%clk 0:02:51.1]} 6. axb4 {[%clk 0:02:49.8]} 6... dxc3 {[%clk
0:02:51.9]} 7. Nxc3 {[%clk 0:02:49.8]} 7... d4 {[%clk 0:02:51]} 8. Bb5+ {[%clk
0:02:47.1]} 8... Nc6 {[%clk 0:02:49]} 9. Ne2 {[%clk 0:02:46.2]} 9... e5 {[%clk
0:02:47.8]} 10. c3 {[%clk 0:02:44.3]} 10... Qb6 {[%clk 0:02:40.1]} 11. Bxc6+
{[%clk 0:02:39.9]} 11... bxc6 {[%clk 0:02:40.9]} 12. cxd4 {[%clk 0:02:37.5]}
12... Qxb4+ {[%clk 0:02:36.9]} 13. Bd2 {[%clk 0:02:37.3]} 13... Qe7 {[%clk
0:02:23.8]} 14. dxe5 {[%clk 0:02:29.8]} 14... Qxe5 {[%clk 0:02:21.7]} 15. Bc3
{[%clk 0:02:29.2]} 15... Qg5 {[%clk 0:02:20.2]} 16. O-O {[%clk 0:02:22.4]} 16...
Ne7 {[%clk 0:02:18.3]} 17. f4 {[%clk 0:02:20.5]} 17... Qg6 {[%clk 0:02:11.9]}
18. Qd4 {[%clk 0:02:13.8]} 18... f6 {[%clk 0:01:55.5]} 19. Ng3 {[%clk 0:02:10]}
19... O-O {[%clk 0:01:52.6]} 20. Rxa7 {[%clk 0:02:06.8]} 20... Rxa7 {[%clk
0:01:51.5]} 21. Qxa7 {[%clk 0:02:07.7]} 21... Qf7 {[%clk 0:01:43.5]} 22. Rd1
{[%clk 0:02:04.9]} 22... Bg4 {[%clk 0:01:40.3]} 23. Rd2 {[%clk 0:02:00.8]} 23...
Qe8 {[%clk 0:01:31.1]} 24. h3 {[%clk 0:01:59.2]} 24... Be6 {[%clk 0:01:29.1]}
25. Bb4 {[%clk 0:01:56.9]} 25... Rf7 {[%clk 0:01:28.6]} 26. Qb6 {[%clk
0:01:51.9]} 26... Rf8 {[%clk 0:01:17]} 27. Qc7 {[%clk 0:01:49.4]} 27... c5
{[%clk 0:00:46.3]} 28. Bxc5 {[%clk 0:01:46.2]} 28... Qa4 {[%clk 0:00:45.1]} 29.
Qxe7 {[%clk 0:01:41.9]} 29... Re8 {[%clk 0:00:39.1]} 30. Rd8 {[%clk 0:01:37.9]}
30... Qa1+ {[%clk 0:00:38.1]} 31. Kh2 {[%clk 0:01:37.6]} 1-0

[Event "*** Titled Tuesday Blitz"]
[Site "Chess.com"]
[Date "2020.11.24"]
[Round "1"]
[White "OsorioFernando"]
[Black "tlomigtlis"]
[Result "1-0"]
[WhiteElo "2310"]
[BlackElo "2568"]
[TimeControl "180+1"]
[EndTime "10:20:17 PST"]
[Termination "OsorioFernando won by resignation"]

1. e4 {[%clk 0:03:00.9]} 1... c5 {[%clk 0:02:58.8]} 2. Nc3 {[%clk 0:03:00.5]}
2... d6 {[%clk 0:02:58.8]} 3. g3 {[%clk 0:03:00.9]} 3... g6 {[%clk 0:02:58.8]}
4. Bg2 {[%clk 0:03:01.1]} 4... Bg7 {[%clk 0:02:59.7]} 5. d3 {[%clk 0:03:01.4]}
5... Nc6 {[%clk 0:03:00.1]} 6. Be3 {[%clk 0:03:01.5]} 6... e6 {[%clk 0:03:00.4]}
7. Qd2 {[%clk 0:03:01.3]} 7... Nd4 {[%clk 0:02:58.9]} 8. Nd1 {[%clk 0:03:00.4]}
8... Ne7 {[%clk 0:02:57]} 9. c3 {[%clk 0:03:00.2]} 9... Ndc6 {[%clk 0:02:56.6]}
10. Bh6 {[%clk 0:03:00.5]} 10... O-O {[%clk 0:02:56.5]} 11. h4 {[%clk
0:02:59.4]} 11... Ne5 {[%clk 0:02:52.5]} 12. Bxg7 {[%clk 0:02:58.8]} 12... Kxg7
{[%clk 0:02:52]} 13. h5 {[%clk 0:02:59.7]} 13... Rh8 {[%clk 0:02:50.7]} 14. h6+
{[%clk 0:02:55.5]} 14... Kf8 {[%clk 0:02:49.8]} 15. f4 {[%clk 0:02:53.7]} 15...
N5c6 {[%clk 0:02:48.9]} 16. Nf3 {[%clk 0:02:52.2]} 16... f6 {[%clk 0:02:45.4]}
17. Ne3 {[%clk 0:02:52]} 17... Kf7 {[%clk 0:02:45.2]} 18. O-O-O {[%clk
0:02:49.7]} 18... Rf8 {[%clk 0:02:41.1]} 19. d4 {[%clk 0:02:49.4]} 19... cxd4
{[%clk 0:02:39.2]} 20. Nxd4 {[%clk 0:02:49.2]} 20... d5 {[%clk 0:02:07.2]} 21.
exd5 {[%clk 0:02:32.7]} 21... exd5 {[%clk 0:01:53.8]} 22. Nb5 {[%clk 0:02:28]}
22... Be6 {[%clk 0:01:50.4]} 23. Nxd5 {[%clk 0:02:23.4]} 23... a6 {[%clk
0:01:35.2]} 24. Nbc7 {[%clk 0:02:19.5]} 24... Rc8 {[%clk 0:01:10.5]} 25. Nxe6
{[%clk 0:02:10]} 25... Kxe6 {[%clk 0:01:11.4]} 26. Rhe1+ {[%clk 0:01:38.9]}
26... Kf7 {[%clk 0:01:08.9]} 27. Nxe7 {[%clk 0:01:38.3]} 27... Nxe7 {[%clk
0:01:05.4]} 28. Qe3 {[%clk 0:01:29.9]} 28... Qxd1+ {[%clk 0:00:44.8]} 29. Rxd1
{[%clk 0:01:29.1]} 29... Rfe8 {[%clk 0:00:43.2]} 30. Rd7 {[%clk 0:01:27.4]}
30... Kf8 {[%clk 0:00:43.4]} 31. Qe6 {[%clk 0:01:26.2]} 1-0

[Event "*** Titled Tuesday Blitz"]
[Site "Chess.com"]
[Date "2020.11.24"]
[Round "1"]
[White "fearless_king2"]
[Black "exoticprincess"]
[Result "0-1"]
[WhiteElo "2441"]
[BlackElo "2901"]
[TimeControl "180+1"]
[EndTime "10:20:20 PST"]
[Termination "exoticprincess won by resignation"]

1. d4 {[%clk 0:03:00.9]} 1... Nf6 {[%clk 0:02:58.2]} 2. Bf4 {[%clk 0:03:01.8]}
2... b6 {[%clk 0:02:57.3]} 3. e3 {[%clk 0:03:02.1]} 3... Bb7 {[%clk 0:02:57.7]}
4. Nf3 {[%clk 0:03:02.4]} 4... d6 {[%clk 0:02:58.2]} 5. h3 {[%clk 0:03:02.6]}
5... Nbd7 {[%clk 0:02:58.6]} 6. Be2 {[%clk 0:03:02.9]} 6... e6 {[%clk
0:02:58.1]} 7. O-O {[%clk 0:03:02.9]} 7... Be7 {[%clk 0:02:58.3]} 8. c4 {[%clk
0:03:03]} 8... O-O {[%clk 0:02:58]} 9. Nc3 {[%clk 0:03:03.1]} 9... Re8 {[%clk
0:02:57.7]} 10. Bh2 {[%clk 0:03:02.6]} 10... Bf8 {[%clk 0:02:57.7]} 11. a3
{[%clk 0:03:02.6]} 11... h6 {[%clk 0:02:55.8]} 12. b4 {[%clk 0:03:02.4]} 12...
Ne4 {[%clk 0:02:55.8]} 13. Nxe4 {[%clk 0:03:00.6]} 13... Bxe4 {[%clk 0:02:56.7]}
14. Nd2 {[%clk 0:03:00.8]} 14... Bb7 {[%clk 0:02:56.1]} 15. Bf3 {[%clk
0:03:00.6]} 15... Qc8 {[%clk 0:02:55.7]} 16. e4 {[%clk 0:02:57.7]} 16... c5
{[%clk 0:02:51.5]} 17. d5 {[%clk 0:02:34.6]} 17... e5 {[%clk 0:02:51.4]} 18. Be2
{[%clk 0:02:31]} 18... Qc7 {[%clk 0:02:50.9]} 19. b5 {[%clk 0:02:25.3]} 19...
Be7 {[%clk 0:02:44.3]} 20. Re1 {[%clk 0:02:24.2]} 20... Bg5 {[%clk 0:02:42.8]}
21. Nf1 {[%clk 0:02:24.2]} 21... Bf4 {[%clk 0:02:40.6]} 22. Ng3 {[%clk
0:02:24.2]} 22... Nf6 {[%clk 0:02:38.2]} 23. Bd3 {[%clk 0:02:21.6]} 23... Bc8
{[%clk 0:02:36.7]} 24. Nf5 {[%clk 0:02:19.5]} 24... Bxh2+ {[%clk 0:02:35.7]} 25.
Kxh2 {[%clk 0:02:20.4]} 25... Bxf5 {[%clk 0:02:35.8]} 26. exf5 {[%clk
0:02:20.6]} 26... e4 {[%clk 0:02:35.7]} 27. Bc2 {[%clk 0:02:20.2]} 27... Re5
{[%clk 0:02:30.4]} 28. g4 {[%clk 0:02:18.7]} 28... a6 {[%clk 0:02:25.6]} 29. a4
{[%clk 0:02:17.9]} 29... Qe7 {[%clk 0:02:24.6]} 30. Re3 {[%clk 0:02:17.2]} 30...
Nh7 {[%clk 0:02:22.5]} 31. Qe1 {[%clk 0:01:55.9]} 31... Ng5 {[%clk 0:02:20.6]}
32. Kg2 {[%clk 0:01:53.4]} 32... Nf3 {[%clk 0:02:15]} 33. Qb1 {[%clk 0:01:51]}
33... Nd2 {[%clk 0:02:07.2]} 34. Qe1 {[%clk 0:01:40.1]} 34... Nxc4 {[%clk
0:02:06.1]} 35. bxa6 {[%clk 0:01:33.4]} 35... Nxe3+ {[%clk 0:02:05.1]} 36. Qxe3
{[%clk 0:01:32.3]} 36... Rxa6 {[%clk 0:02:06]} 37. Re1 {[%clk 0:01:29.7]} 37...
Ra8 {[%clk 0:02:01.2]} 38. Qb3 {[%clk 0:01:29]} 38... Re8 {[%clk 0:01:58.7]} 39.
Re3 {[%clk 0:01:28.7]} 39... Qb7 {[%clk 0:01:57.7]} 40. a5 {[%clk 0:01:25.1]}
40... b5 {[%clk 0:01:58.1]} 41. Qa2 {[%clk 0:01:18.1]} 41... Qxd5 {[%clk
0:01:55]} 42. Bb3 {[%clk 0:01:17.5]} 42... c4 {[%clk 0:01:55.1]} 43. Bc2 {[%clk
0:01:14.8]} 43... Ra8 {[%clk 0:01:53.9]} 44. h4 {[%clk 0:01:11.7]} 44... b4
{[%clk 0:01:52.4]} 45. Qa4 {[%clk 0:01:07.9]} 45... b3 {[%clk 0:01:52.5]} 46.
Bb1 {[%clk 0:01:08]} 46... Rxa5 {[%clk 0:01:52.3]} 47. Qb4 {[%clk 0:01:07.1]}
47... Ra8 {[%clk 0:01:51.2]} 48. Rf3 {[%clk 0:01:01.4]} 48... exf3+ {[%clk
0:01:50.2]} 0-1

[Event "*** Titled Tuesday Blitz"]
[Site "Chess.com"]
[Date "2020.11.24"]
[Round "1"]
[White "dennisodessa"]
[Black "HajduIstvanCM"]
[Result "0-1"]
[WhiteElo "2454"]
[BlackElo "1696"]
[TimeControl "180+1"]
[EndTime "10:20:26 PST"]
[Termination "HajduIstvanCM won by checkmate"]

1. d4 {[%clk 0:02:59.3]} 1... d5 {[%clk 0:02:58.3]} 2. c4 {[%clk 0:02:59.2]}
2... c6 {[%clk 0:02:57.8]} 3. Nf3 {[%clk 0:02:58.9]} 3... Nf6 {[%clk 0:02:57.4]}
4. Nbd2 {[%clk 0:02:59]} 4... Bf5 {[%clk 0:02:56.1]} 5. Nh4 {[%clk 0:02:58.3]}
5... Bg6 {[%clk 0:02:54.3]} 6. Qb3 {[%clk 0:02:56.7]} 6... Qd7 {[%clk
0:02:49.3]} 7. e3 {[%clk 0:02:52.3]} 7... e6 {[%clk 0:02:47.3]} 8. Nxg6 {[%clk
0:02:52]} 8... hxg6 {[%clk 0:02:45.9]} 9. Bd3 {[%clk 0:02:52.9]} 9... Bd6 {[%clk
0:02:43.8]} 10. Nf3 {[%clk 0:02:50.2]} 10... Qe7 {[%clk 0:02:39.3]} 11. Bd2
{[%clk 0:02:39.2]} 11... O-O {[%clk 0:02:30.2]} 12. O-O {[%clk 0:02:37.9]} 12...
b6 {[%clk 0:02:23.4]} 13. Rfd1 {[%clk 0:02:36.6]} 13... Nbd7 {[%clk 0:02:22.5]}
14. Rac1 {[%clk 0:02:34.9]} 14... Rac8 {[%clk 0:02:20]} 15. cxd5 {[%clk
0:02:33.1]} 15... exd5 {[%clk 0:02:08.9]} 16. Ba6 {[%clk 0:02:34]} 16... Rc7
{[%clk 0:02:07.8]} 17. Rc2 {[%clk 0:02:32.5]} 17... Nb8 {[%clk 0:02:04.6]} 18.
Bd3 {[%clk 0:02:29.9]} 18... Ne4 {[%clk 0:02:00.7]} 19. Rdc1 {[%clk 0:02:27.9]}
19... g5 {[%clk 0:01:57.6]} 20. h3 {[%clk 0:01:51.5]} 20... f5 {[%clk
0:01:38.2]} 21. Bxe4 {[%clk 0:01:41.3]} 21... fxe4 {[%clk 0:01:32.9]} 22. Ne5
{[%clk 0:01:41.4]} 22... Bxe5 {[%clk 0:01:26.5]} 23. dxe5 {[%clk 0:01:42.1]}
23... Qxe5 {[%clk 0:01:25.6]} 24. Bc3 {[%clk 0:01:42.2]} 24... Qf5 {[%clk
0:01:21.6]} 25. Bb4 {[%clk 0:01:37.3]} 25... Rf6 {[%clk 0:01:16.2]} 26. Rd1
{[%clk 0:01:29.3]} 26... g4 {[%clk 0:01:13.1]} 27. Rxd5 {[%clk 0:01:25.2]} 27...
cxd5 {[%clk 0:01:07.1]} 28. Rxc7 {[%clk 0:01:24.5]} 28... Qxf2+ {[%clk
0:01:06.4]} 29. Kh1 {[%clk 0:01:24.9]} 29... Qf1+ {[%clk 0:01:01.8]} 30. Kh2
{[%clk 0:01:24.5]} 30... g3+ {[%clk 0:00:59.4]} 31. Kxg3 {[%clk 0:01:22.5]}
31... Rg6+ {[%clk 0:00:53.7]} 32. Kh4 {[%clk 0:01:17]} 32... Qf6+ {[%clk
0:00:51.7]} 33. Kh5 {[%clk 0:01:16.9]} 33... Qg5# {[%clk 0:00:52.1]} 0-1

[Event "*** Titled Tuesday Blitz"]
[Site "Chess.com"]
[Date "2020.11.24"]
[Round "1"]
[White "IMAghasiyevKamal"]
[Black "HrvojeZagreb"]
[Result "1-0"]
[WhiteElo "2543"]
[BlackElo "2239"]
[TimeControl "180+1"]
[EndTime "10:20:29 PST"]
[Termination "IMAghasiyevKamal won by resignation"]

1. e4 {[%clk 0:03:00.9]} 1... e6 {[%clk 0:02:59.4]} 2. d4 {[%clk 0:03:00.7]}
2... d5 {[%clk 0:02:59]} 3. Nc3 {[%clk 0:02:59.9]} 3... dxe4 {[%clk 0:02:59.3]}
4. Nxe4 {[%clk 0:03:00]} 4... Nd7 {[%clk 0:02:58.7]} 5. Nf3 {[%clk 0:02:59.6]}
5... Ngf6 {[%clk 0:02:58.9]} 6. Bd3 {[%clk 0:02:59.8]} 6... Nxe4 {[%clk
0:02:58.2]} 7. Bxe4 {[%clk 0:03:00.2]} 7... Nf6 {[%clk 0:02:58.8]} 8. Bd3 {[%clk
0:02:58.2]} 8... c5 {[%clk 0:02:56.4]} 9. dxc5 {[%clk 0:02:57.6]} 9... Bxc5
{[%clk 0:02:54]} 10. O-O {[%clk 0:02:57.8]} 10... Qc7 {[%clk 0:02:52.3]} 11. Qe2
{[%clk 0:02:57.7]} 11... O-O {[%clk 0:02:49.5]} 12. Bg5 {[%clk 0:02:53.5]} 12...
Nd5 {[%clk 0:02:43.9]} 13. Qe4 {[%clk 0:02:51.2]} 13... f5 {[%clk 0:02:43.1]}
14. Qh4 {[%clk 0:02:47.6]} 14... Nb4 {[%clk 0:02:41]} 15. Bf4 {[%clk 0:02:39.3]}
15... Qe7 {[%clk 0:02:29.4]} 16. Qg3 {[%clk 0:02:33.7]} 16... Nxd3 {[%clk
0:02:25.3]} 17. cxd3 {[%clk 0:02:33.8]} 17... Bd7 {[%clk 0:02:02.6]} 18. d4
{[%clk 0:02:33.3]} 18... Bb6 {[%clk 0:01:54.3]} 19. Bd6 {[%clk 0:02:32.3]} 19...
Qe8 {[%clk 0:01:53.2]} 20. Bxf8 {[%clk 0:02:29.1]} 20... Qxf8 {[%clk 0:01:54.1]}
21. Ne5 {[%clk 0:02:28.5]} 21... Be8 {[%clk 0:01:51.6]} 22. Qb3 {[%clk
0:02:27.5]} 22... Qd6 {[%clk 0:01:47]} 23. Rad1 {[%clk 0:02:23]} 23... Bc7
{[%clk 0:01:32.6]} 24. f4 {[%clk 0:02:15.7]} 24... Bc6 {[%clk 0:01:25.6]} 25.
Nxc6 {[%clk 0:02:12.9]} 25... Qxc6 {[%clk 0:01:22.8]} 26. d5 {[%clk 0:02:10.8]}
26... exd5 {[%clk 0:01:04.9]} 27. Rxd5 {[%clk 0:02:10.3]} 27... Kh8 {[%clk
0:00:55.7]} 28. Rxf5 {[%clk 0:01:54.3]} 28... Re8 {[%clk 0:00:48.1]} 29. Qb5
{[%clk 0:01:46.2]} 29... Qe6 {[%clk 0:00:41.6]} 30. h3 {[%clk 0:01:36.3]} 30...
Bb6+ {[%clk 0:00:27.1]} 31. Kh1 {[%clk 0:01:32.3]} 31... h6 {[%clk 0:00:26.6]}
32. Re5 {[%clk 0:01:31]} 1-0

[Event "*** Titled Tuesday Blitz"]
[Site "Chess.com"]
[Date "2020.11.24"]
[Round "1"]
[White "paperotto610"]
[Black "burbur555"]
[Result "0-1"]
[WhiteElo "2279"]
[BlackElo "2579"]
[TimeControl "180+1"]
[EndTime "10:20:33 PST"]
[Termination "burbur555 won by checkmate"]

1. b3 {[%clk 0:02:58]} 1... d5 {[%clk 0:02:59.7]} 2. Bb2 {[%clk 0:02:58.9]} 2...
Bf5 {[%clk 0:02:59.3]} 3. e3 {[%clk 0:02:59.6]} 3... e6 {[%clk 0:02:59]} 4. Be2
{[%clk 0:02:59.9]} 4... Nf6 {[%clk 0:02:58.3]} 5. g4 {[%clk 0:02:59.8]} 5... Be4
{[%clk 0:02:57.7]} 6. f3 {[%clk 0:02:57.9]} 6... Bg6 {[%clk 0:02:57.5]} 7. h4
{[%clk 0:02:56.9]} 7... h5 {[%clk 0:02:57.1]} 8. g5 {[%clk 0:02:56.1]} 8... Nfd7
{[%clk 0:02:57]} 9. Nh3 {[%clk 0:02:56.6]} 9... e5 {[%clk 0:02:56.8]} 10. Nc3
{[%clk 0:02:52.8]} 10... c6 {[%clk 0:02:55.2]} 11. d4 {[%clk 0:02:45.8]} 11...
Bd6 {[%clk 0:02:52.6]} 12. Qd2 {[%clk 0:02:39.5]} 12... Qe7 {[%clk 0:02:46.8]}
13. O-O-O {[%clk 0:02:36]} 13... a5 {[%clk 0:02:38.6]} 14. f4 {[%clk 0:02:27.1]}
14... e4 {[%clk 0:02:34.8]} 15. Nf2 {[%clk 0:02:16.7]} 15... Bf5 {[%clk
0:02:34.2]} 16. Na4 {[%clk 0:02:07.4]} 16... Bb4 {[%clk 0:02:21.6]} 17. Bc3
{[%clk 0:01:59.4]} 17... b5 {[%clk 0:02:17]} 18. Nc5 {[%clk 0:01:24.1]} 18...
Nxc5 {[%clk 0:02:15.8]} 19. dxc5 {[%clk 0:01:11.1]} 19... Qxc5 {[%clk
0:02:15.1]} 20. Kb2 {[%clk 0:00:58.7]} 20... Bxc3+ {[%clk 0:02:13.8]} 21. Qxc3
{[%clk 0:00:59.6]} 21... Qxc3+ {[%clk 0:02:13.7]} 22. Kxc3 {[%clk 0:01:00.3]}
22... Nd7 {[%clk 0:02:11.1]} 23. a3 {[%clk 0:00:56.6]} 23... g6 {[%clk
0:02:08.8]} 24. b4 {[%clk 0:00:56]} 24... axb4+ {[%clk 0:02:04.7]} 25. axb4
{[%clk 0:00:56.9]} 25... Ra3+ {[%clk 0:02:03.7]} 26. Kd4 {[%clk 0:00:55.5]}
26... Ke7 {[%clk 0:02:02.8]} 27. Ra1 {[%clk 0:00:53.5]} 27... Rha8 {[%clk
0:02:01.8]} 28. Rxa3 {[%clk 0:00:53.1]} 28... Rxa3 {[%clk 0:01:59.3]} 29. Rb1
{[%clk 0:00:49.9]} 29... Kd6 {[%clk 0:01:58.5]} 30. Rb3 {[%clk 0:00:43.2]} 30...
Ra1 {[%clk 0:01:56.1]} 31. Nd1 {[%clk 0:00:38.6]} 31... Bg4 {[%clk 0:01:49.3]}
32. Nc3 {[%clk 0:00:21]} 32... Nf8 {[%clk 0:01:48]} 33. Rb2 {[%clk 0:00:11.7]}
33... Ne6# {[%clk 0:01:43.7]} 0-1

[Event "*** Titled Tuesday Blitz"]
[Site "Chess.com"]
[Date "2020.11.24"]
[Round "1"]
[White "Dinamo3"]
[Black "K_A_S_T_O_R"]
[Result "0-1"]
[WhiteElo "2403"]
[BlackElo "2788"]
[TimeControl "180+1"]
[EndTime "10:20:39 PST"]
[Termination "K_A_S_T_O_R won by resignation"]

1. e4 {[%clk 0:03:00.8]} 1... c5 {[%clk 0:02:54.4]} 2. Nf3 {[%clk 0:03:00.6]}
2... d6 {[%clk 0:02:51.4]} 3. d4 {[%clk 0:03:00.7]} 3... cxd4 {[%clk 0:02:51.3]}
4. Nxd4 {[%clk 0:03:01.6]} 4... Nf6 {[%clk 0:02:50]} 5. Nc3 {[%clk 0:03:01.9]}
5... a6 {[%clk 0:02:50.2]} 6. f3 {[%clk 0:03:02.3]} 6... e6 {[%clk 0:02:48.4]}
7. Be3 {[%clk 0:03:02]} 7... b5 {[%clk 0:02:48.2]} 8. Qd2 {[%clk 0:03:02.2]}
8... Nbd7 {[%clk 0:02:47.1]} 9. O-O-O {[%clk 0:03:01.7]} 9... Nb6 {[%clk
0:02:45.6]} 10. Bd3 {[%clk 0:02:50.7]} 10... Bb7 {[%clk 0:02:45]} 11. g4 {[%clk
0:02:50.4]} 11... Rc8 {[%clk 0:02:44]} 12. Kb1 {[%clk 0:02:46.7]} 12... Nfd7
{[%clk 0:02:43.5]} 13. Qf2 {[%clk 0:02:40.1]} 13... Rxc3 {[%clk 0:02:41.6]} 14.
bxc3 {[%clk 0:02:40.1]} 14... Qc7 {[%clk 0:02:35.6]} 15. Bxb5 {[%clk 0:01:09]}
15... axb5 {[%clk 0:02:16.4]} 16. Nxb5 {[%clk 0:01:08.8]} 16... Qc6 {[%clk
0:02:14.1]} 17. Na7 {[%clk 0:00:42.9]} 17... Qxc3 {[%clk 0:02:09.4]} 18. Rd3
{[%clk 0:00:42.8]} 18... Qa5 {[%clk 0:02:09.2]} 19. Rb3 {[%clk 0:00:39.9]} 19...
Qxa7 {[%clk 0:02:01.6]} 20. Bxb6 {[%clk 0:00:39.4]} 20... Qa6 {[%clk 0:01:52.5]}
21. Rd1 {[%clk 0:00:35.9]} 21... Be7 {[%clk 0:01:50.9]} 22. Qd4 {[%clk
0:00:20.6]} 22... O-O {[%clk 0:01:48.8]} 23. a4 {[%clk 0:00:18.6]} 23... Bc6
{[%clk 0:01:43.5]} 24. a5 {[%clk 0:00:18.8]} 24... d5 {[%clk 0:01:42.8]} 25.
exd5 {[%clk 0:00:16.6]} 25... Bxd5 {[%clk 0:01:42.4]} 26. Rc3 {[%clk 0:00:16.7]}
26... Nxb6 {[%clk 0:01:41.4]} 27. Qxb6 {[%clk 0:00:15.7]} 27... Qa8 {[%clk
0:01:37.1]} 28. Kc1 {[%clk 0:00:11.9]} 28... Bg5+ {[%clk 0:01:34.9]} 29. Rd2
{[%clk 0:00:06.5]} 29... Bxf3 {[%clk 0:01:33.8]} 0-1